bitfinex-derivatives/quotes_ETHF0:USTF0_20250217
["timestamp","ask_amount","ask_price","bid_price","bid_amount"]
[1739829476113,2.44,2769.8,2769.5,0.564]
[1739829476305,0.57759,2769.7,2769.5,0.564]
[1739829476506,2.44,2769.8,2769.5,0.564]
[1739829477009,0.57761,2769.6,2769.5,0.564]
[1739829478013,1.12571,2769.7,2769.5,0.564]
[1739829478316,0.5481,2769.7,2769.5,0.564]
[1739829478520,0.57761,2769.6,2769.5,0.564]
[1739829478814,0.5481,2769.7,2769.5,0.564]
[1739829479018,1.12571,2769.7,2769.5,0.564]
[1739829479220,0.57761,2769.6,2769.5,0.564]
[1739829480811,5.83236721,2769.8,2769.5,0.564]
[1739829481008,0.5776,2769.7,2769.5,0.564]
[1739829481208,6.40994721,2769.8,2769.5,0.564]
[1739829481405,0.57761,2769.7,2769.5,0.564]
[1739829482310,0.57761,2769.6,2769.5,0.564]
[1739829482811,0.57761,2769.7,2769.5,0.564]
[1739829483010,2.44,2769.8,2769.5,0.564]
[1739829483615,0.57761,2769.7,2769.5,0.564]
[1739829484719,2.44,2769.8,2769.5,0.564]
[1739829485119,2.44,2769.7,2769.5,0.564]
[1739829486012,0.5561,2770.2,2769.5,0.564]
[1739829486013,2.44,2769.9,2769.5,0.564]
[1739829486207,2.44,2769.9,2769.6,0.5707]
[1739829489932,3.01755,2769.9,2769.6,0.5707]
[1739829490434,2.44,2769.9,2769.6,0.5707]
[1739829490728,3.01756,2769.9,2769.6,0.5707]
[1739829491931,3.01755,2769.9,2769.6,0.5707]
[1739829492115,2.44,2769.9,2769.6,0.5707]
[1739829492314,0.57758,2769.8,2769.5,0.564]
[1739829492926,3.01756,2769.9,2769.5,0.564]
[1739829493823,2.44,2769.9,2769.5,0.564]
[1739829494722,3.01757,2769.9,2769.5,0.564]
[1739829495117,2.44,2769.9,2769.5,0.564]
[1739829495315,3.39236721,2770.3,2769.8,3.2078]
[1739829495525,1.095,2770.4,2769.9,1.1006]
[1739829495719,0.5775,2770.2,2769.9,1.1006]
[1739829496024,0.5775,2770.2,2770.0,0.5714]
[1739829497822,2.439,2770.3,2770.0,0.5714]
[1739829498018,2.439,2770.3,2770.1,3.2078]
[1739829499314,2.439,2770.3,2770.1,3.1978]
[1739829500118,0.00541467,2770.5,2770.1,3.1978]
[1739829500324,3.01645,2770.4,2770.1,3.1978]
[1739829500526,2.439,2770.4,2770.1,3.1978]
[1739829501925,3.01646,2770.4,2770.1,3.1978]
[1739829502225,2.439,2770.4,2770.1,3.1978]
[1739829504321,2.438,2770.4,2770.1,3.1978]
[1739829506030,0.00541467,2770.5,2770.1,6.59016721]
[1739829506325,0.5257,2770.8,2770.4,3.2078]
[1739829506525,1.10307,2770.8,2770.5,0.5656]
[1739829506928,1.10307,2770.8,2770.5,1.1033]
[1739829507122,0.5257,2770.8,2770.5,1.1033]
[1739829507426,0.00540136,2770.9,2770.7,3.2078]
[1739829508331,0.00540136,2770.9,2770.7,3.49927369]
[1739829509128,0.00540136,2770.9,2770.7,4.07664369]
[1739829509429,0.00540136,2770.9,2770.7,3.49927369]
[1739829510831,0.0015518,2770.8,2770.7,3.49927369]
[1739829512127,0.0015518,2770.8,2770.7,4.07666369]
[1739829512326,0.0015518,2770.8,2770.7,3.49927369]
[1739829512631,0.0015518,2770.8,2770.7,4.07665369]
[1739829512831,0.0015518,2770.8,2770.7,3.49927369]
[1739829513628,0.0015518,2770.8,2770.7,4.07665369]
[1739829514027,0.0015518,2770.8,2770.7,3.49927369]
[1739829514632,0.0015518,2770.8,2770.7,4.07666369]
[1739829514928,0.00540136,2770.9,2770.7,3.49927369]
[1739829515131,0.00540136,2770.9,2770.8,3.96972721]
[1739829515432,0.5596,2771.2,2770.9,0.57734]
[1739829515729,3.01525,2771.4,2771.0,3.7317]
[1739829515934,3.56825,2771.4,2771.1,0.5363]
[1739829516729,0.57727,2771.3,2771.1,0.5363]
[1739829516934,2.991,2771.4,2771.1,0.5363]
[1739829517136,0.57728,2771.2,2771.0,3.73711467]
[1739829517326,0.57727,2771.3,2771.0,3.73711467]
[1739829517629,3.56825,2771.4,2771.0,3.73711467]
[1739829518026,2.991,2771.4,2771.0,3.73711467]
[1739829518328,3.56825,2771.4,2771.0,3.73711467]
[1739829518629,2.991,2771.4,2771.0,3.73711467]
[1739829518836,0.57729,2771.2,2771.0,3.73711467]
[1739829519237,2.991,2771.4,2771.0,3.73711467]
[1739829519736,3.56825,2771.4,2771.0,3.73711467]
[1739829519937,2.991,2771.4,2771.0,3.73711467]
[1739829520733,3.56825,2771.4,2771.0,3.73711467]
[1739829520937,3.2078,2771.9,2771.3,3.78505]
[1739829521240,0.5745,2771.8,2771.4,0.5607]
[1739829521435,0.18503729,2772.2,2771.7,3.39236721]
[1739829521935,0.57711,2772.1,2771.6,3.2078]
[1739829522329,0.5495,2772.1,2771.9,3.2078]
[1739829522533,0.5745,2772.3,2771.9,3.2078]
[1739829522832,3.2078,2773.4,2772.2,3.2078]
[1739829523140,3.2078,2773.4,2772.8,3.2078]
[1739829523326,1.1004,2773.1,2772.8,3.2078]
[1739829523533,3.2078,2773.4,2772.8,3.2078]
[1739829523734,2.437,2773.5,2772.9,0.5314]
[1739829524132,1.0991,2773.6,2773.1,3.2078]
[1739829524341,1.0991,2773.6,2773.1,3.49030921]
[1739829524831,1.0991,2773.6,2773.1,3.2078]
[1739829525037,3.39236721,2773.2,2772.4,3.21321467]
[1739829525234,3.39236721,2772.9,2772.4,3.21321467]
[1739829525430,1.657,2772.8,2772.4,0.00541467]
[1739829525636,0.577,2772.6,2772.4,0.00541467]
[1739829525838,2.436,2772.7,2772.4,0.00541467]
[1739829526835,0.57699,2772.6,2772.4,0.00541467]
[1739829527033,5.6438,2772.7,2772.4,0.00541467]
[1739829527233,0.57701,2772.5,2772.4,0.00541467]
[1739829527637,0.577,2772.6,2772.4,0.00541467]
[1739829527934,2.436,2772.7,2772.4,0.00541467]
[1739829528141,3.01298,2772.7,2772.4,0.00541467]
[1739829528350,2.436,2772.7,2772.4,0.00541467]
[1739829528538,0.577,2772.6,2772.4,0.00541467]
[1739829528741,2.436,2772.7,2772.4,0.00541467]
[1739829528935,0.57701,2772.5,2772.4,0.00541467]
[1739829530333,2.61292057,2772.7,2772.4,0.00541467]
[1739829530535,0.57701,2772.5,2772.4,0.00541467]
[1739829530731,2.436,2772.5,2771.5,3.2078]
[1739829530935,0.6372139,2772.4,2771.7,3.39236721]
[1739829531237,2.436,2772.3,2772.0,3.39236721]
[1739829531548,2.436,2772.3,2772.1,3.2078]
[1739829531837,2.436,2772.3,2772.1,3.7542]
[1739829532040,2.436,2772.4,2772.1,4.33129]
[1739829532240,2.436,2772.4,2772.1,3.7542]
[1739829532542,2.436,2772.4,2772.3,3.39236721]
[1739829533247,2.436,2772.4,2772.2,3.39236721]
[1739829533839,2.436,2772.4,2772.1,7.14656721]
[1739829534144,2.436,2772.7,2772.1,7.14656721]
[1739829534344,2.436,2772.7,2772.6,6.60016721]
[1739829534746,3.2078,2773.4,2772.6,13.12306721]
[1739829534747,2.436,2773.4,2772.6,13.12306721]
[1739829534942,2.436,2773.4,2773.1,3.2078]
[1739829535147,2.436,2773.4,2773.2,0.5696]
[1739829536439,2.435,2773.6,2773.2,0.5696]
[1739829536638,0.00818817,2773.7,2773.4,3.2078]
[1739829536944,4.19316447,2775.7,2773.4,3.2078]
[1739829536945,0.57656,2774.7,2773.6,3.39236721]
[1739829537244,0.57672,2773.9,2773.5,3.2078]
[1739829537743,0.57674,2773.8,2773.5,3.2078]
[1739829538244,3.96256721,2774.0,2773.4,0.00541467]
[1739829538444,5.82736721,2773.7,2773.4,0.00541467]
[1739829538652,0.5768,2773.5,2773.4,0.00541467]
[1739829538846,3.7846,2773.5,2773.4,0.00541467]
[1739829539150,4.37034153,2773.5,2773.4,0.00541467]
[1739829539945,1.4421,2773.4,2772.5,3.2078]
[1739829540140,0.57696,2772.8,2772.5,3.2078]
[1739829540347,2.435,2772.7,2772.5,3.2078]
[1739829541350,3.2078,2773.5,2772.5,3.2078]
[1739829541648,0.57671,2774.0,2773.4,3.39236721]
[1739829541848,2.446,2773.9,2773.5,3.2078]
[1739829542148,2.448,2774.2,2773.7,3.39236721]
[1739829542349,1.07,2774.7,2774.0,3.39236721]
[1739829542645,3.08470985,2774.6,2774.1,0.5745]
[1739829542845,3.02459,2774.6,2774.1,0.5745]
[1739829543050,2.448,2774.6,2774.1,0.5745]
[1739829543248,3.2078,2774.4,2773.7,0.00541467]
[1739829543750,0.57669,2774.1,2773.7,0.00541467]
[1739829544347,2.451,2774.3,2773.7,3.39778188]
[1739829544544,2.451,2774.3,2773.7,4.23345962]
[1739829544742,2.451,2774.3,2773.8,0.5217]
[1739829544950,0.06011789,2774.5,2774.2,4.22804495]
[1739829545253,3.2078,2775.8,2774.4,3.2078]
[1739829545449,3.2078,2775.5,2774.7,3.2078]
[1739829545757,2.471,2775.5,2775.0,3.2078]
[1739829546049,2.473,2775.7,2775.3,3.2078]
[1739829546250,3.2078,2775.5,2774.8,0.00540472]
[1739829546552,3.2078,2775.5,2774.9,3.2078]
[1739829546751,2.473,2775.7,2775.2,3.2078]
[1739829547656,2.473,2775.7,2775.2,7.43584495]
[1739829547851,2.473,2775.7,2775.3,0.5438]
[1739829548846,0.57638,2775.6,2775.3,0.5438]
[1739829549043,3.2078,2775.9,2775.3,0.5438]
[1739829549354,6.28212,2775.9,2775.3,1.1157]
[1739829549556,5.7058,2775.9,2775.3,1.1157]
[1739829550053,6.28211,2775.9,2775.3,1.1157]
[1739829550554,6.28011,2775.9,2775.3,1.1157]
[1739829550956,5.7038,2775.9,2775.3,0.5438]
[1739829551459,6.28011,2775.9,2775.3,0.5438]
[1739829551644,0.57637,2775.7,2775.3,0.5438]
[1739829551848,5.7038,2775.9,2775.3,0.5438]
[1739829552046,0.57636,2775.7,2775.3,0.5438]
[1739829552246,5.7038,2775.9,2775.3,0.5438]
[1739829552453,6.28012,2775.9,2775.3,0.5438]
[1739829552654,0.57636,2775.7,2775.3,0.5438]
[1739829552956,5.7038,2775.9,2775.3,0.5438]
[1739829553462,0.57641,2775.4,2775.3,0.5438]
[1739829553852,2.492,2775.5,2775.3,0.5438]
[1739829554048,2.492,2775.5,2774.9,3.7396]
[1739829554557,2.492,2775.5,2775.2,3.2078]
[1739829554949,3.06839,2775.5,2775.2,3.2078]
[1739829555146,2.492,2775.5,2774.9,3.7396]
[1739829555457,3.0684,2775.5,2774.9,3.7396]
[1739829555662,2.492,2775.5,2774.9,3.7396]
[1739829556046,0.57644,2775.3,2774.9,3.7396]
[1739829556251,1.1225,2775.4,2774.9,3.7396]
[1739829556451,2.492,2775.5,2774.9,3.7396]
[1739829556956,2.492,2775.5,2775.2,3.2078]
[1739829556957,0.57643,2775.4,2775.2,3.2078]
[1739829557157,0.57643,2775.4,2774.9,3.7396]
[1739829557357,2.492,2775.5,2774.9,3.7396]
[1739829557562,3.0684,2775.5,2774.9,3.7396]
[1739829557862,0.57643,2775.3,2774.9,3.7396]
[1739829558160,0.57645,2775.2,2774.9,3.7396]
[1739829558370,2.49,2775.1,2774.9,3.7396]
[1739829558549,3.06648,2775.1,2774.9,3.7396]
[1739829559059,2.49,2775.1,2774.9,3.7396]
[1739829559252,0.57649,2775.0,2774.9,3.2078]
[1739829560551,0.57651,2774.9,2774.8,0.00540472]
[1739829561255,0.5765,2775.0,2774.8,0.00540472]
[1739829561650,0.57651,2774.9,2774.8,0.00540472]
[1739829561953,4.32360641,2790.5,2774.9,0.5765]
[1739829561954,0.57634,2775.8,2774.9,0.5765]
[1739829562152,2.49,2775.9,2775.2,3.2078]
[1739829562352,0.57641,2775.4,2775.3,0.5426]
[1739829562557,2.49,2775.4,2775.3,0.5426]
[1739829565559,2.49,2775.4,2775.0,0.5396]
[1739829565758,2.49,2775.4,2775.0,1.0634]
[1739829565952,2.49,2775.4,2775.2,3.2078]
[1739829566962,0.57634,2775.8,2775.3,0.5771]
[1739829567162,2.492,2775.6,2775.3,0.5771]
[1739829568562,3.2078,2776.0,2775.5,3.2078]
[1739829568867,3.2078,2776.0,2775.6,0.5402]
[1739829569162,2.488,2775.9,2775.6,1.0728]
[1739829570365,2.49,2776.2,2775.8,0.57632]
[1739829570556,2.49,2776.2,2775.7,3.37011747]
[1739829570758,3.2078,2776.4,2775.7,3.37011747]
[1739829571052,2.489,2776.3,2775.7,3.94645747]
[1739829571658,2.489,2776.6,2776.0,7.15418747]
[1739829571864,2.489,2776.6,2776.1,0.5575]
[1739829572063,5.6968,2776.7,2776.2,0.5324]
[1739829572258,2.64369268,2776.9,2776.3,7.15413747]
[1739829572561,0.15569268,2776.9,2776.3,7.15411747]
[1739829572771,0.15569268,2776.9,2776.6,6.57791747]
[1739829573356,0.15569268,2776.9,2776.6,7.15407747]
[1739829573662,0.15569268,2776.9,2776.6,6.57791747]
[1739829574070,0.15569268,2776.9,2776.6,3.2078]
[1739829574269,0.15569268,2776.9,2776.3,6.58332219]
[1739829574568,3.2078,2776.8,2776.3,0.00540472]
[1739829574867,3.784,2776.4,2776.3,0.00540472]
[1739829575570,3.26741769,2776.4,2775.7,3.2078]
[1739829575764,2.506,2776.3,2775.7,3.2078]
[1739829576268,2.506,2776.3,2775.8,0.551]
[1739829576566,0.00537156,2776.3,2776.0,3.2078]
[1739829577761,0.00537156,2776.3,2775.8,0.55640472]
[1739829577959,0.57628,2776.1,2775.8,0.55640472]
[1739829578159,1.11387156,2776.3,2775.8,0.55640472]
[1739829578367,1.69009156,2776.3,2775.8,0.55640472]
[1739829578667,1.11387156,2776.3,2775.8,0.55640472]
[1739829579069,4.32167156,2776.3,2775.8,0.55640472]
[1739829579264,2.506,2776.2,2775.8,0.55640472]
[1739829580169,3.21317156,2776.3,2775.9,4.22234941]
[1739829581870,3.21317156,2776.3,2776.0,0.57628]
[1739829582065,3.21317156,2776.3,2775.9,4.76294941]
[1739829582264,3.21317156,2776.3,2775.9,5.33924941]
[1739829582464,3.21317156,2776.3,2775.9,4.76294941]
[1739829582666,0.00537156,2776.3,2776.2,3.2078]
[1739829584178,3.21050393,2778.0,2776.2,38.20475082]
[1739829584367,3.21050393,2778.0,2777.2,4.79837941]
[1739829584568,3.21050393,2778.0,2777.3,1.0966]
[1739829584869,5.73750393,2778.0,2777.3,1.0966]
[1739829585165,0.00270393,2778.0,2777.7,0.57592]
[1739829585373,0.00270393,2778.0,2777.8,3.2078]
[1739829586476,0.00270393,2778.0,2777.9,4.22234941]
[1739829587774,0.00270393,2778.0,2777.9,4.21961143]
[1739829588165,3.2078,2778.8,2777.9,10.21961143]
[1739829588471,0.17913266,2780.2,2777.8,5.7568]
[1739829588472,3.2078,2779.2,2778.5,3.2078]
[1739829588775,0.57566,2779.1,2778.5,3.2078]
[1739829589077,3.2078,2779.2,2778.6,0.00540472]
[1739829589478,0.57565,2779.1,2778.6,0.00540472]
[1739829589777,3.2078,2779.2,2778.6,0.00540472]
[1739829590176,0.57564,2779.1,2778.6,0.00540472]
[1739829590380,2.546,2779.1,2778.6,0.00540472]
[1739829590574,3.12164,2779.1,2778.6,0.00540472]
[1739829590781,2.546,2779.1,2778.6,0.00540472]
[1739829591077,0.5561,2779.0,2778.6,0.00540472]
[1739829591279,0.5757,2778.9,2778.6,0.00540472]
[1739829591578,0.57573,2778.7,2778.6,0.00540472]
[1739829591775,3.2078,2780.3,2778.6,9.21320472]
[1739829591980,0.5517,2780.3,2779.4,3.2078]
[1739829592171,3.7595,2780.3,2779.4,3.2078]
[1739829592374,3.1341,2780.2,2779.4,3.2078]
[1739829592582,0.57556,2779.6,2779.2,0.00539462]
[1739829592767,2.579,2779.6,2779.2,0.00539462]
[1739829592968,3.2078,2779.4,2778.8,3.2078]
[1739829593172,0.5757,2778.8,2778.3,3.2078]
[1739829593377,3.6777,2778.7,2778.6,3.2078]
[1739829593580,4.25343,2778.7,2778.3,3.2078]
[1739829594175,4.25344,2778.7,2778.3,3.2078]
[1739829594380,1.0967,2778.7,2778.6,3.2078]
[1739829595481,0.5751,2778.7,2778.6,3.2078]
[1739829595682,2.58436092,2778.8,2778.6,3.2078]
[1739829595974,0.00536092,2778.8,2778.6,3.2078]
[1739829596179,0.57576,2778.6,2778.3,3.2078]
[1739829596380,0.5773,2778.5,2778.3,3.2078]
[1739829596880,0.5773,2778.5,2778.2,0.00539462]
[1739829597079,0.57581,2778.3,2778.2,0.00539462]
[1739829597270,3.15481,2778.3,2778.2,0.00539462]
[1739829597477,2.579,2778.3,2778.2,0.00539462]
[1739829597673,2.581,2778.3,2778.2,3.21319462]
[1739829598296,0.00536092,2778.8,2778.2,3.21319462]
[1739829598509,0.00536092,2778.8,2778.4,3.2078]
[1739829598722,2.584,2778.7,2778.2,0.00539462]
[1739829598916,0.57578,2778.5,2778.2,0.00539462]
[1739829599410,0.5758,2778.4,2778.2,0.00539462]
[1739829599588,3.16181,2778.3,2778.2,0.00539462]
[1739829599782,2.586,2778.3,2778.2,0.00539462]
[1739829602785,5.997,2778.2,2776.4,3.2078]
[1739829602978,3.2078,2777.4,2776.7,3.2078]
[1739829603283,3.2078,2777.4,2776.1,0.28419113]
[1739829603284,2.613,2777.4,2777.3,3.2078]
[1739829603483,6.83534941,2777.4,2776.9,3.2078]
[1739829603685,3.2078,2778.1,2777.2,3.2078]
[1739829603881,0.00539462,2777.4,2777.3,0.57602]
[1739829604080,6.84934941,2778.4,2777.3,5.8368]
[1739829604280,6.84934941,2778.4,2778.0,3.2078]
[1739829604882,2.627,2778.4,2778.0,3.2078]
[1739829605283,0.00536092,2778.5,2778.0,3.78367]
[1739829605488,0.00536092,2778.5,2778.0,3.2078]
[1739829605988,0.00536092,2778.5,2777.8,0.5716]
[1739829605989,0.00536092,2778.5,2778.4,3.2078]
[1739829606389,0.00536092,2778.5,2778.1,3.2078]
[1739829606988,0.58113092,2778.5,2778.1,3.2078]
[1739829607190,0.58113092,2778.5,2777.8,3.7794]
[1739829607887,2.62736092,2778.5,2777.8,3.7794]
[1739829608294,0.5758,2778.4,2777.8,3.7794]
[1739829608887,2.62736092,2778.5,2777.8,3.7794]
[1739829609091,0.57588,2778.0,2777.5,3.2078]
[1739829609280,0.00536092,2778.5,2777.9,3.2078]
[1739829609485,3.2078,2779.1,2778.2,3.2078]
[1739829609782,3.78344,2779.1,2778.5,3.2078]
[1739829609980,4.40613136,2779.4,2778.0,0.5608]
[1739829609981,3.2078,2778.7,2778.0,0.5608]
[1739829610186,4.22234941,2778.5,2777.6,3.2078]
[1739829610386,3.2078,2778.1,2777.6,3.2078]
[1739829610585,4.22234941,2777.9,2777.2,3.7686]
[1739829610786,4.22234941,2777.9,2777.6,0.00539462]
[1739829610995,0.57593,2777.7,2777.6,0.00539462]
[1739829611395,6.11917002,2777.7,2776.6,3.7833]
[1739829611596,3.2078,2776.9,2776.3,3.2078]
[1739829611786,5.8648,2776.9,2776.3,3.2078]
[1739829611991,5.8648,2776.9,2776.0,3.7833]
[1739829612195,0.57612,2776.8,2776.0,3.7833]
[1739829612388,3.2078,2776.6,2775.7,3.2078]
[1739829612589,0.5762,2776.4,2776.1,0.00539462]
[1739829612791,5.8698,2776.3,2776.1,0.00539462]
[1739829613001,0.5763,2776.0,2775.0,3.7833]
[1739829613191,3.2078,2776.0,2775.0,3.7833]
[1739829613398,0.05962438,2775.9,2775.6,4.22234941]
[1739829613591,4.22234941,2775.9,2774.6,0.29248254]
[1739829613791,2.68,2776.2,2773.6,1.34346807]
[1739829613792,4.22234941,2774.7,2773.9,3.2078]
[1739829614101,4.22234941,2774.3,2773.7,0.5755]
[1739829614300,4.22234941,2774.3,2774.0,0.00540443]
[1739829614602,3.2078,2774.5,2774.0,0.00540443]
[1739829614603,7.82270063,2774.1,2774.0,0.00540443]
[1739829614794,3.2078,2774.4,2774.0,0.00540443]
[1739829615101,2.803,2774.3,2774.0,0.00540443]
[1739829615594,0.57668,2774.1,2774.0,0.00540443]
[1739829615897,3.2078,2774.2,2772.5,3.2078]
[1739829616098,4.61490063,2772.8,2772.1,3.2078]
[1739829616296,4.61490063,2772.4,2771.7,17.33084637]
[1739829616495,2.83,2772.3,2771.7,14.12304637]
[1739829616705,2.831,2772.2,2771.7,17.33084637]
[1739829616898,2.831,2772.2,2771.8,3.2078]
[1739829617210,0.00540443,2772.3,2772.2,0.57707]
[1739829617502,2.835,2773.1,2772.3,0.57704]
[1739829617705,2.835,2773.1,2772.7,3.2078]
[1739829617900,4.61490063,2772.8,2772.0,3.2078]
[1739829618096,4.61490063,2772.4,2772.0,3.2078]
[1739829618297,2.845,2772.5,2772.0,3.2078]
[1739829618497,3.2078,2774.4,2772.3,3.2078]
[1739829618700,2.864,2774.3,2773.5,3.2078]
[1739829619015,0.00540443,2773.6,2773.2,3.2078]
[1739829619714,0.00540443,2773.6,2773.5,3.2078]
[1739829620603,2.87,2774.2,2773.5,3.2078]
[1739829620800,0.57653,2774.8,2773.7,3.2078]
[1739829621105,2.87,2774.7,2773.7,3.2078]
[1739829621312,4.61490063,2774.4,2773.3,3.2078]
[1739829621507,4.61490063,2774.0,2773.3,3.2078]
[1739829621705,3.45472,2773.9,2773.1,0.00540443]
[1739829622611,2.878,2773.9,2773.1,0.00540443]
[1739829622913,2.873,2773.8,2773.3,3.2078]
[1739829623414,2.871,2773.7,2773.6,3.2078]
[1739829623712,2.871,2773.7,2773.1,0.00540443]
[1739829623713,2.871,2773.7,2773.3,3.2078]
[1739829624708,6.0788,2773.7,2773.1,0.00540443]
[1739829624909,0.5768,2773.6,2773.1,0.00540443]
[1739829625106,6.0788,2773.7,2773.1,0.00540443]
[1739829625408,3.2078,2773.6,2773.1,0.00540443]
[1739829625611,0.57681,2773.5,2773.1,0.00540443]
[1739829625813,7.82270063,2773.6,2773.1,0.00540443]
[1739829626115,19.99,2773.8,2773.1,0.00540443]
[1739829626309,2.877,2773.7,2773.6,3.2078]
[1739829626510,2.877,2773.7,2773.2,3.2078]
[1739829626712,2.877,2773.7,2773.1,0.58228443]
[1739829626713,2.877,2773.7,2773.6,3.2078]
[1739829627410,0.543,2774.3,2773.6,3.2078]
[1739829627714,2.88740443,2774.1,2773.9,3.2078]
[1739829627916,2.88740443,2774.1,2773.9,3.78452]
[1739829628117,2.88740443,2774.1,2773.9,3.2078]
[1739829628611,2.88740443,2774.1,2773.8,3.2078]
[1739829629907,2.88740443,2774.1,2774.0,0.5767]
[1739829630211,0.00540443,2774.1,2774.0,0.5767]
[1739829630411,2.886,2774.7,2773.8,3.49442936]
[1739829630615,2.886,2774.7,2774.3,3.2078]
[1739829631517,2.886,2774.7,2773.7,3.2078]
[1739829631710,0.57659,2774.6,2773.7,3.78455]
[1739829632015,2.886,2774.7,2774.0,3.2078]
[1739829632319,0.57661,2774.5,2773.7,3.2078]
[1739829632516,2.886,2774.7,2773.7,3.2078]
[1739829632713,0.5767,2774.1,2773.5,3.2078]
[1739829633014,2.883,2774.0,2773.5,3.2078]
[1739829633519,2.883,2774.0,2773.1,3.2078]
[1739829633715,13.81970063,2773.2,2771.9,0.44140774]
[1739829633909,3.2078,2772.9,2771.9,0.44140774]
[1739829634109,1.0958,2774.1,2772.3,3.2078]
[1739829634110,3.2078,2773.2,2772.3,3.2078]
[1739829634318,3.189,2773.4,2772.6,3.2078]
[1739829634516,3.2078,2772.9,2771.9,3.63040774]
[1739829634724,4.61490063,2773.3,2773.0,3.2078]
[1739829635020,3.2078,2773.1,2772.7,3.21320443]
[1739829635321,7.82270063,2772.8,2771.8,0.5226]
[1739829635620,3.2078,2772.5,2772.0,0.57712]
[1739829635815,4.61490063,2772.4,2772.1,3.2078]
[1739829636017,3.2078,2772.2,2772.0,3.2078]
[1739829636222,3.191,2772.1,2772.0,3.2078]
[1739829636925,3.2078,2772.2,2772.0,3.2078]
[1739829637221,6.4008,2772.2,2772.1,3.2078]
[1739829637615,6.4008,2772.2,2771.8,0.00540443]
[1739829637817,6.4008,2772.2,2772.1,3.2078]
[1739829638424,3.193,2772.2,2772.1,3.2078]
[1739829639216,3.2078,2772.5,2772.1,3.2078]
[1739829639217,3.186,2772.5,2772.1,3.2078]
[1739829639419,3.186,2772.5,2772.4,3.2078]
[1739829639619,6.3938,2772.5,2772.4,3.2078]
[1739829639820,3.186,2772.5,2772.4,3.2078]
[1739829640322,3.177,2772.8,2772.4,3.2078]
[1739829640525,3.176,2773.0,2772.7,3.2078]
[1739829640720,3.176,2773.0,2772.2,0.57707]
[1739829640721,3.176,2773.0,2772.9,3.2078]
[1739829641721,3.176,2773.0,2771.8,0.00540443]
[1739829641922,3.2078,2772.8,2772.2,0.57707]
[1739829642127,3.2078,2772.8,2772.7,3.2078]
[1739829642327,0.57701,2772.6,2771.8,0.00540443]
[1739829642520,24.64255443,2773.3,2772.0,3.2078]
[1739829642521,3.2078,2772.3,2772.0,3.2078]
[1739829642826,3.175,2772.2,2771.8,3.21320443]
[1739829643124,3.2078,2772.0,2771.8,3.21320443]
[1739829643626,3.2078,2772.0,2771.8,0.00540443]
[1739829643929,3.175,2772.2,2771.9,3.2078]
[1739829644117,3.175,2772.2,2772.1,3.2078]
[1739829644316,9.175,2772.2,2771.9,3.2078]
[1739829644522,7.82270063,2772.0,2770.8,0.5368]
[1739829644828,7.82270063,2771.6,2771.3,3.2078]
[1739829645021,7.82270063,2771.6,2770.9,0.44892424]
[1739829645022,3.167,2771.5,2770.9,0.44892424]
[1739829645323,0.5587,2772.2,2771.5,3.2078]
[1739829645526,3.165,2772.1,2771.8,3.2078]
[1739829645828,3.2078,2771.9,2771.8,3.2078]
[1739829646526,3.16140443,2772.1,2771.8,3.78496]
[1739829646825,3.16140443,2772.1,2772.0,3.2078]
[1739829647028,3.16140443,2772.1,2772.0,3.78492]
[1739829647329,0.00540443,2772.1,2772.0,3.2078]
[1739829647628,3.2078,2772.7,2772.0,3.2078]
[1739829647629,6.3628,2772.7,2772.0,3.2078]
[1739829647830,6.3628,2772.7,2772.6,3.2078]
[1739829648922,6.3628,2772.7,2771.8,3.2078]
[1739829649231,6.3628,2772.7,2772.2,3.2078]
[1739829649528,6.3628,2772.7,2771.6,0.00540443]
[1739829649529,0.57712,2772.0,2771.9,0.44785486]
[1739829649824,10.96970063,2772.0,2771.6,0.00540443]
[1739829650021,3.147,2772.0,2771.9,3.2078]
[1739829650626,3.2078,2772.6,2771.9,3.2078]
[1739829650927,3.145,2772.5,2771.9,0.57713]
[1739829651229,3.145,2772.5,2771.6,3.21320443]
[1739829651434,3.145,2772.5,2772.4,3.2078]
[1739829653034,6.3378,2772.6,2772.4,3.2078]
[1739829653224,3.13,2772.6,2772.5,3.78481]
[1739829653431,3.21320443,2772.9,2772.8,0.57695]
[1739829653628,3.21320443,2772.9,2772.8,3.2078]
[1739829654034,3.21320443,2772.9,2772.8,3.78475]
[1739829654228,0.00540443,2772.9,2772.8,3.78475]
[1739829654631,0.00540443,2772.9,2772.8,3.2078]
[1739829655641,0.00540443,2772.9,2772.8,3.78475]
[1739829655931,0.00540443,2772.9,2772.8,3.2078]
[1739829656132,0.00540443,2772.9,2772.8,3.78475]
[1739829656840,0.00540443,2772.9,2772.8,3.2078]
[1739829657250,0.00540443,2772.9,2772.8,3.78475]
[1739829657535,0.00540443,2772.9,2772.8,6.99255]
[1739829657938,0.00540443,2772.9,2772.8,7.51688268]
[1739829658140,3.11,2773.8,2772.8,9.73213268]
[1739829658445,3.11,2773.8,2773.7,3.2078]
[1739829658940,3.2078,2774.0,2773.7,3.2078]
[1739829659139,3.7845,2774.0,2773.9,3.2078]
[1739829659338,3.2078,2774.0,2773.9,3.2078]
[1739829659732,3.21320443,2774.1,2773.9,3.2078]
[1739829659929,0.00540443,2774.1,2774.0,3.2078]
[1739829661239,3.21320443,2774.1,2774.0,3.2078]
[1739829661851,3.2078,2774.5,2774.0,3.2078]
[1739829662144,3.2078,2774.5,2774.4,3.2078]
[1739829662733,0.57651,2775.0,2774.4,3.2078]
[1739829662944,3.2078,2775.0,2774.7,3.2078]
[1739829663146,3.087,2774.9,2774.8,3.2078]
[1739829663445,3.087,2774.9,2774.0,0.00156004]